[Event "Titled Tuesday Blitz March 21 Late 2023"]
[White "Jimenez Fernandez, Rebeca"]
[Black "Papp, Levente"]
[WhiteFideId "32070934"]
[BlackFideId "751243"]
[WhiteElo "2008"]
[BlackElo "2380"]
[Result "0-1"]
[Round "01"]
[TimeControl "180+2"]
[Date "2023.03.21"]
[WhiteClock "0:00:05"]
[BlackClock "0:00:57"]

1. e4 {[%clk 0:02:58]}  e6 {[%clk 0:02:58]} 2. d3 {[%clk 0:02:57]}  d5 {[%clk 0:02:58]} 3. Nd2 {[%clk 0:02:58]}  Nf6 {[%clk 0:02:59]} 4. Ngf3 {[%clk 0:02:58]}  Bc5 {[%clk 0:02:59]} 5. e5 {[%clk 0:02:54]}  Nfd7 {[%clk 0:02:59]} 6. d4 {[%clk 0:02:54]}  Bb6 {[%clk 0:02:59]} 7. c3 {[%clk 0:02:54]}  c5 {[%clk 0:02:59]} 8. Bd3 {[%clk 0:02:53]}  Nc6 {[%clk 0:02:57]} 9. O-O {[%clk 0:02:45]}  cxd4 {[%clk 0:02:56]} 10. cxd4 {[%clk 0:02:46]}  Nxd4 {[%clk 0:02:57]} 11. Nxd4 {[%clk 0:02:46]}  Bxd4 {[%clk 0:02:57]} 12. Nf3 {[%clk 0:02:47]}  Bxe5 {[%clk 0:02:57]} 13. Nxe5 {[%clk 0:02:42]}  Nxe5 {[%clk 0:02:57]} 14. Bc2 {[%clk 0:02:39]}  Ng6 {[%clk 0:02:27]} 15. f4 {[%clk 0:02:38]}  O-O {[%clk 0:02:16]} 16. f5 {[%clk 0:02:36]}  exf5 {[%clk 0:02:15]} 17. Bxf5 {[%clk 0:02:36]}  Qb6+ {[%clk 0:02:10]} 18. Kh1 {[%clk 0:02:34]}  Bxf5 {[%clk 0:02:10]} 19. Rxf5 {[%clk 0:02:34]}  d4 {[%clk 0:02:09]} 20. b3 {[%clk 0:02:29]}  Qe6 {[%clk 0:02:06]} 21. Rf1 {[%clk 0:02:26]}  Rad8 {[%clk 0:02:05]} 22. Bb2 {[%clk 0:02:25]}  Rfe8 {[%clk 0:01:56]} 23. Qf3 {[%clk 0:02:07]}  Qd5 {[%clk 0:01:50]} 24. Qxd5 {[%clk 0:01:39]}  Rxd5 {[%clk 0:01:49]} 25. Rad1 {[%clk 0:01:37]}  d3 {[%clk 0:01:48]} 26. Rd2 {[%clk 0:01:12]}  Re2 {[%clk 0:01:35]} 27. Rfd1 {[%clk 0:00:41]}  Nf4 {[%clk 0:01:34]} 28. g3 {[%clk 0:00:38]}  Nh3 {[%clk 0:01:34]} 29. Rxe2 {[%clk 0:00:07]}  dxe2 {[%clk 0:01:35]} 30. Re1 {[%clk 0:00:06]}  Rd2 {[%clk 0:00:57]} 31. Bc3 {[%clk 0:00:06]}  Rxa2 {[%clk 0:00:57]} 32. Kg2 {[%clk 0:00:05]}  Ng5 {[%clk 0:00:57]} 0-1


[Site "https://www.chess.com"]

[Event "Titled Tuesday Blitz March 21 Late 2023"]
[White "Riff, Vincent"]
[Black "Hartikainen, Jarmo"]
[WhiteFideId "617776"]
[BlackFideId "503134"]
[WhiteElo "2369"]
[BlackElo "2177"]
[Result "1-0"]
[Round "01"]
[TimeControl "180+2"]
[Date "2023.03.21"]
[WhiteClock "0:01:15"]
[BlackClock "0:00:17"]

1. e4 {[%clk 0:02:59]}  c5 {[%clk 0:02:59]} 2. Nc3 {[%clk 0:02:58]}  Nc6 {[%clk 0:02:59]} 3. Bb5 {[%clk 0:02:56]}  g6 {[%clk 0:02:58]} 4. Bxc6 {[%clk 0:02:56]}  dxc6 {[%clk 0:02:58]} 5. d3 {[%clk 0:02:57]}  Bg7 {[%clk 0:02:58]} 6. f4 {[%clk 0:02:56]}  Nf6 {[%clk 0:02:47]} 7. Nf3 {[%clk 0:02:56]}  Bg4 {[%clk 0:02:46]} 8. O-O {[%clk 0:02:55]}  Qd7 {[%clk 0:02:33]} 9. Qe1 {[%clk 0:02:51]}  Bxf3 {[%clk 0:02:24]} 10. Rxf3 {[%clk 0:02:52]}  h5 {[%clk 0:02:13]} 11. f5 {[%clk 0:02:46]}  Ng4 {[%clk 0:02:02]} 12. Ne2 {[%clk 0:02:38]}  O-O-O {[%clk 0:01:58]} 13. Bf4 {[%clk 0:02:31]}  Ne5 {[%clk 0:01:52]} 14. Rf1 {[%clk 0:02:26]}  f6 {[%clk 0:01:41]} 15. Bxe5 {[%clk 0:02:23]}  fxe5 {[%clk 0:01:40]} 16. fxg6 {[%clk 0:02:23]}  Bf6 {[%clk 0:01:28]} 17. Ng3 {[%clk 0:02:16]}  Rdg8 {[%clk 0:01:26]} 18. Qa5 {[%clk 0:02:07]}  b6 {[%clk 0:01:20]} 19. Qa6+ {[%clk 0:02:07]}  Qb7 {[%clk 0:01:18]} 20. Qxb7+ {[%clk 0:02:06]}  Kxb7 {[%clk 0:01:19]} 21. Rf5 {[%clk 0:01:55]}  h4 {[%clk 0:01:13]} 22. Ne2 {[%clk 0:01:46]}  Rxg6 {[%clk 0:01:12]} 23. Raf1 {[%clk 0:01:46]}  Rhg8 {[%clk 0:01:12]} 24. R1f2 {[%clk 0:01:30]}  Bg5 {[%clk 0:01:06]} 25. R5f3 {[%clk 0:01:30]}  Rf6 {[%clk 0:00:57]} 26. Rxf6 {[%clk 0:01:27]}  exf6 {[%clk 0:00:55]} 27. Kf1 {[%clk 0:01:26]}  a5 {[%clk 0:00:49]} 28. Ng1 {[%clk 0:01:25]}  b5 {[%clk 0:00:34]} 29. Nf3 {[%clk 0:01:25]}  Bf4 {[%clk 0:00:27]} 30. Nxh4 {[%clk 0:01:22]}  Bxh2 {[%clk 0:00:24]} 31. Rxf6 {[%clk 0:01:22]}  a4 {[%clk 0:00:22]} 32. Nf5 {[%clk 0:01:19]}  b4 {[%clk 0:00:19]} 33. Nd6+ {[%clk 0:01:18]}  Kb6 {[%clk 0:00:19]} 34. Nc4+ {[%clk 0:01:18]}  Kb5 {[%clk 0:00:19]} 35. Rf7 {[%clk 0:01:19]}  Rb8 {[%clk 0:00:19]} 36. b3 {[%clk 0:01:16]}  Bf4 {[%clk 0:00:17]} 37. Kf2 {[%clk 0:01:15]}  axb3 {[%clk 0:00:17]} 38. axb3 {[%clk 0:01:15]} 1-0


[Site "https://www.chess.com"]

[Event "Titled Tuesday Blitz March 21 Late 2023"]
[White "MKlose11"]
[Black "lluiss"]
[WhiteElo "2576"]
[BlackElo "2170"]
[Result "1-0"]
[Round "01"]
[TimeControl "180+2"]
[Date "2023.03.21"]
[WhiteClock "0:00:19"]
[BlackClock "0:00:03"]

1. e4 {[%clk 0:02:57]}  c5 {[%clk 0:02:59]} 2. Nc3 {[%clk 0:02:52]}  d6 {[%clk 0:02:59]} 3. g3 {[%clk 0:02:52]}  Nc6 {[%clk 0:02:58]} 4. Bg2 {[%clk 0:02:53]}  g6 {[%clk 0:02:58]} 5. d3 {[%clk 0:02:54]}  Bg7 {[%clk 0:02:58]} 6. Be3 {[%clk 0:02:55]}  Rb8 {[%clk 0:02:58]} 7. Qd2 {[%clk 0:02:55]}  b5 {[%clk 0:02:58]} 8. Nge2 {[%clk 0:02:55]}  b4 {[%clk 0:02:59]} 9. Nd1 {[%clk 0:02:55]}  Qb6 {[%clk 0:02:59]} 10. O-O {[%clk 0:02:55]}  h5 {[%clk 0:02:57]} 11. h3 {[%clk 0:02:55]}  e6 {[%clk 0:02:57]} 12. f4 {[%clk 0:02:54]}  Nge7 {[%clk 0:02:57]} 13. a3 {[%clk 0:02:48]}  a5 {[%clk 0:02:56]} 14. axb4 {[%clk 0:02:48]}  axb4 {[%clk 0:02:57]} 15. c3 {[%clk 0:02:43]}  Ba6 {[%clk 0:02:53]} 16. c4 {[%clk 0:02:19]}  Bb7 {[%clk 0:02:45]} 17. Nf2 {[%clk 0:02:18]}  f5 {[%clk 0:02:30]} 18. g4 {[%clk 0:02:12]}  hxg4 {[%clk 0:02:29]} 19. hxg4 {[%clk 0:02:13]}  Kf7 {[%clk 0:02:22]} 20. Nh3 {[%clk 0:02:09]}  Rxh3 {[%clk 0:01:51]} 21. Bxh3 {[%clk 0:02:07]}  fxe4 {[%clk 0:01:51]} 22. dxe4 {[%clk 0:02:06]}  Nd4 {[%clk 0:01:49]} 23. Bxd4 {[%clk 0:01:49]}  cxd4 {[%clk 0:01:48]} 24. Qd3 {[%clk 0:01:50]}  Rh8 {[%clk 0:01:45]} 25. Bg2 {[%clk 0:01:49]}  Rh4 {[%clk 0:01:39]} 26. Bf3 {[%clk 0:01:46]}  Ng8 {[%clk 0:01:13]} 27. Kg2 {[%clk 0:01:44]}  Nf6 {[%clk 0:01:13]} 28. Rh1 {[%clk 0:01:44]}  Rxg4+ {[%clk 0:01:10]} 29. Kf2 {[%clk 0:01:38]}  e5 {[%clk 0:00:40]} 30. Rag1 {[%clk 0:01:24]}  Rxg1 {[%clk 0:00:39]} 31. Rxg1 {[%clk 0:01:24]}  Bc8 {[%clk 0:00:28]} 32. Ke1 {[%clk 0:01:07]}  Qc5 {[%clk 0:00:28]} 33. b3 {[%clk 0:01:03]}  Qa5 {[%clk 0:00:27]} 34. Kf2 {[%clk 0:00:59]}  Bb7 {[%clk 0:00:23]} 35. Rd1 {[%clk 0:00:53]}  Nd7 {[%clk 0:00:21]} 36. f5 {[%clk 0:00:49]}  g5 {[%clk 0:00:17]} 37. Bh5+ {[%clk 0:00:48]}  Kg8 {[%clk 0:00:16]} 38. Qh3 {[%clk 0:00:45]}  Nc5 {[%clk 0:00:15]} 39. Bg6 {[%clk 0:00:41]}  Nxe4+ {[%clk 0:00:13]} 40. Kf1 {[%clk 0:00:41]}  Kf8 {[%clk 0:00:04]} 41. f6 {[%clk 0:00:38]}  Nxf6 {[%clk 0:00:04]} 42. Qe6 {[%clk 0:00:37]}  Qc7 {[%clk 0:00:02]} 43. Kg1 {[%clk 0:00:32]}  Bc8 {[%clk 0:00:02]} 44. Qf7+ {[%clk 0:00:23]}  Qxf7 {[%clk 0:00:01]} 45. Bxf7 {[%clk 0:00:24]}  Kxf7 {[%clk 0:00:02]} 46. Ra1 {[%clk 0:00:25]}  Be6 {[%clk 0:00:01]} 47. Ra7+ {[%clk 0:00:25]}  Kg6 {[%clk 0:00:02]} 48. Ra6 {[%clk 0:00:25]}  Ne4 {[%clk 0:00:02]} 49. Kg2 {[%clk 0:00:25]}  Bf6 {[%clk 0:00:02]} 50. Kf3 {[%clk 0:00:25]}  Nc3 {[%clk 0:00:02]} 51. Rxd6 {[%clk 0:00:24]}  Nxe2 {[%clk 0:00:01]} 52. Kxe2 {[%clk 0:00:24]}  Kf5 {[%clk 0:00:02]} 53. c5 {[%clk 0:00:23]}  e4 {[%clk 0:00:01]} 54. c6 {[%clk 0:00:23]}  d3+ {[%clk 0:00:02]} 55. Ke3 {[%clk 0:00:22]}  Be5 {[%clk 0:00:03]} 56. Rd8 {[%clk 0:00:21]}  Bf4+ {[%clk 0:00:03]} 57. Kf2 {[%clk 0:00:20]}  d2 {[%clk 0:00:03]} 58. Ke2 {[%clk 0:00:19]}  e3 {[%clk 0:00:04]} 59. Rf8+ {[%clk 0:00:18]}  Kg4 {[%clk 0:00:03]} 60. c7 {[%clk 0:00:19]} 1-0


[Site "https://www.chess.com"]

[Event "Titled Tuesday Blitz March 21 Late 2023"]
[White "Domingo Nunez, Alejandro"]
[Black "Bongo Akanga Ndjila, Barthelemy"]
[WhiteFideId "22245561"]
[BlackFideId "10609431"]
[WhiteElo "2230"]
[BlackElo "1768"]
[Result "1-0"]
[Round "01"]
[TimeControl "180+2"]
[Date "2023.03.21"]
[WhiteClock "0:00:10"]
[BlackClock "0:00:33"]

1. Nf3 {[%clk 0:02:54]}  d5 {[%clk 0:02:58]} 2. g3 {[%clk 0:02:54]}  c5 {[%clk 0:02:50]} 3. Bg2 {[%clk 0:02:53]}  Nc6 {[%clk 0:02:50]} 4. d4 {[%clk 0:02:54]}  Nf6 {[%clk 0:02:49]} 5. O-O {[%clk 0:02:53]}  Bg4 {[%clk 0:02:46]} 6. Ne5 {[%clk 0:02:23]}  Bf5 {[%clk 0:02:40]} 7. Nxc6 {[%clk 0:02:21]}  bxc6 {[%clk 0:02:39]} 8. dxc5 {[%clk 0:02:21]}  e6 {[%clk 0:02:32]} 9. c4 {[%clk 0:02:22]}  Bxc5 {[%clk 0:02:31]} 10. cxd5 {[%clk 0:02:22]}  cxd5 {[%clk 0:02:24]} 11. Nc3 {[%clk 0:02:14]}  O-O {[%clk 0:02:23]} 12. Bg5 {[%clk 0:02:13]}  h6 {[%clk 0:02:20]} 13. Bf4 {[%clk 0:02:13]}  Bd6 {[%clk 0:02:18]} 14. Bxd6 {[%clk 0:02:07]}  Qxd6 {[%clk 0:02:17]} 15. e4 {[%clk 0:02:08]}  Bg4 {[%clk 0:02:17]} 16. Qd2 {[%clk 0:01:26]}  Rad8 {[%clk 0:02:03]} 17. exd5 {[%clk 0:01:08]}  exd5 {[%clk 0:02:02]} 18. Qd4 {[%clk 0:01:02]}  a5 {[%clk 0:01:55]} 19. h3 {[%clk 0:01:01]}  Bh5 {[%clk 0:01:48]} 20. g4 {[%clk 0:01:01]}  Bg6 {[%clk 0:01:48]} 21. Rfd1 {[%clk 0:00:59]}  Rfe8 {[%clk 0:01:39]} 22. Nxd5 {[%clk 0:00:44]}  Nxd5 {[%clk 0:01:33]} 23. Qxd5 {[%clk 0:00:45]}  Re1+ {[%clk 0:01:32]} 24. Rxe1 {[%clk 0:00:37]}  Qxd5 {[%clk 0:01:30]} 25. Bxd5 {[%clk 0:00:38]}  Rxd5 {[%clk 0:01:25]} 26. Rad1 {[%clk 0:00:38]}  Rb5 {[%clk 0:01:25]} 27. Rd2 {[%clk 0:00:30]}  a4 {[%clk 0:01:23]} 28. Re8+ {[%clk 0:00:26]}  Kh7 {[%clk 0:01:22]} 29. Ra8 {[%clk 0:00:26]}  Rb4 {[%clk 0:01:19]} 30. f3 {[%clk 0:00:24]}  h5 {[%clk 0:01:19]} 31. Kf2 {[%clk 0:00:24]}  hxg4 {[%clk 0:01:18]} 32. hxg4 {[%clk 0:00:23]}  f5 {[%clk 0:01:18]} 33. Kg3 {[%clk 0:00:24]}  fxg4 {[%clk 0:01:17]} 34. fxg4 {[%clk 0:00:24]}  Be4 {[%clk 0:01:14]} 35. Ra6 {[%clk 0:00:21]}  Rc4 {[%clk 0:01:07]} 36. Kh4 {[%clk 0:00:17]}  Bc6 {[%clk 0:01:03]} 37. Rd6 {[%clk 0:00:15]}  Be8 {[%clk 0:01:03]} 38. Rd5 {[%clk 0:00:14]}  Bg6 {[%clk 0:01:02]} 39. Rg5 {[%clk 0:00:13]}  Bb1 {[%clk 0:01:00]} 40. Ra7 {[%clk 0:00:13]}  Bxa2 {[%clk 0:00:54]} 41. Rgxg7+ {[%clk 0:00:11]}  Kh8 {[%clk 0:00:51]} 42. Rgc7 {[%clk 0:00:09]}  Rf4 {[%clk 0:00:37]} 43. Rc8+ {[%clk 0:00:08]}  Bg8 {[%clk 0:00:37]} 44. Raa8 {[%clk 0:00:09]}  Kg7 {[%clk 0:00:36]} 45. Rxg8+ {[%clk 0:00:09]}  Kf6 {[%clk 0:00:34]} 46. Rgf8+ {[%clk 0:00:09]}  Ke5 {[%clk 0:00:34]} 47. Ra5+ {[%clk 0:00:09]}  Ke4 {[%clk 0:00:34]} 48. Rxa4+ {[%clk 0:00:09]}  Kf3 {[%clk 0:00:33]} 49. Rfxf4+ {[%clk 0:00:10]} 1-0


[Site "https://www.chess.com"]

[Event "Titled Tuesday Blitz March 21 Late 2023"]
[White "ilya2700"]
[Black "Koellner, Ruben Gideon"]
[BlackFideId "12993093"]
[WhiteElo "2128"]
[BlackElo "2303"]
[Result "0-1"]
[Round "01"]
[TimeControl "180+2"]
[Date "2023.03.21"]
[WhiteClock "0:00:46"]
[BlackClock "0:01:53"]

1. e4 {[%clk 0:02:44]}  d6 {[%clk 0:02:59]} 2. d4 {[%clk 0:02:44]}  Nf6 {[%clk 0:02:59]} 3. Nc3 {[%clk 0:02:42]}  e5 {[%clk 0:03:00]} 4. Nf3 {[%clk 0:02:41]}  Nbd7 {[%clk 0:02:59]} 5. Bc4 {[%clk 0:02:42]}  Be7 {[%clk 0:02:59]} 6. dxe5 {[%clk 0:02:42]}  Nxe5 {[%clk 0:02:59]} 7. Nxe5 {[%clk 0:02:38]}  dxe5 {[%clk 0:03:00]} 8. Qxd8+ {[%clk 0:02:38]}  Bxd8 {[%clk 0:03:01]} 9. f3 {[%clk 0:02:39]}  c6 {[%clk 0:03:01]} 10. Be3 {[%clk 0:02:40]}  b5 {[%clk 0:03:02]} 11. Bb3 {[%clk 0:02:39]}  Bb6 {[%clk 0:03:02]} 12. Bxb6 {[%clk 0:02:35]}  axb6 {[%clk 0:03:03]} 13. Kf2 {[%clk 0:02:18]}  Ke7 {[%clk 0:03:03]} 14. Rhd1 {[%clk 0:02:14]}  Nd7 {[%clk 0:03:02]} 15. g3 {[%clk 0:02:10]}  Nc5 {[%clk 0:02:58]} 16. f4 {[%clk 0:02:10]}  f6 {[%clk 0:02:55]} 17. Ke3 {[%clk 0:02:06]}  Bg4 {[%clk 0:02:52]} 18. Rd2 {[%clk 0:02:06]}  Rhd8 {[%clk 0:02:46]} 19. Rxd8 {[%clk 0:01:45]}  Rxd8 {[%clk 0:02:47]} 20. a4 {[%clk 0:01:45]}  b4 {[%clk 0:02:41]} 21. Na2 {[%clk 0:01:44]}  Nxb3 {[%clk 0:02:41]} 22. cxb3 {[%clk 0:01:43]}  c5 {[%clk 0:02:42]} 23. h3 {[%clk 0:01:38]}  Bxh3 {[%clk 0:02:41]} 24. Rh1 {[%clk 0:01:39]}  Be6 {[%clk 0:02:39]} 25. Rxh7 {[%clk 0:01:37]}  Kf7 {[%clk 0:02:36]} 26. Nc1 {[%clk 0:01:34]}  Rd1 {[%clk 0:02:30]} 27. Nd3 {[%clk 0:01:34]}  exf4+ {[%clk 0:02:29]} 28. Nxf4 {[%clk 0:01:31]}  Bxb3 {[%clk 0:02:28]} 29. Nh5 {[%clk 0:01:30]}  Kg6 {[%clk 0:02:26]} 30. Rxg7+ {[%clk 0:01:27]}  Kxh5 {[%clk 0:02:26]} 31. Rb7 {[%clk 0:01:27]}  Rd6 {[%clk 0:02:25]} 32. Kf4 {[%clk 0:01:24]}  Kg6 {[%clk 0:02:24]} 33. Ra7 {[%clk 0:01:18]}  Bd1 {[%clk 0:02:15]} 34. g4 {[%clk 0:01:05]}  Bc2 {[%clk 0:02:07]} 35. Ra6 {[%clk 0:00:59]}  Re6 {[%clk 0:02:04]} 36. Kg3 {[%clk 0:00:46]}  Rxe4 {[%clk 0:01:53]} 37. Rxb6 {[%clk 0:00:46]}  Bxa4 {[%clk 0:01:53]} 0-1


[Site "https://www.chess.com"]

[Event "Titled Tuesday Blitz March 21 Late 2023"]
[White "Molenda, Marcin"]
[Black "Michalski, Olaf"]
[WhiteFideId "1173065"]
[BlackFideId "1106740"]
[WhiteElo "2286"]
[BlackElo "2173"]
[Result "0-1"]
[Round "01"]
[TimeControl "180+2"]
[Date "2023.03.21"]
[WhiteClock "0:00:12"]
[BlackClock "0:00:12"]

1. c4 {[%clk 0:02:58]}  Nf6 {[%clk 0:02:59]} 2. g3 {[%clk 0:02:55]}  g6 {[%clk 0:02:55]} 3. Bg2 {[%clk 0:02:55]}  d5 {[%clk 0:02:56]} 4. cxd5 {[%clk 0:02:55]}  Nxd5 {[%clk 0:02:56]} 5. Nf3 {[%clk 0:02:55]}  Bg7 {[%clk 0:02:55]} 6. O-O {[%clk 0:02:55]}  O-O {[%clk 0:02:55]} 7. d4 {[%clk 0:02:55]}  Nb6 {[%clk 0:02:38]} 8. Nc3 {[%clk 0:02:55]}  Nc6 {[%clk 0:02:33]} 9. e3 {[%clk 0:02:55]}  e5 {[%clk 0:02:29]} 10. d5 {[%clk 0:02:55]}  Ne7 {[%clk 0:02:19]} 11. e4 {[%clk 0:02:55]}  h6 {[%clk 0:02:18]} 12. a4 {[%clk 0:02:50]}  Bg4 {[%clk 0:02:10]} 13. a5 {[%clk 0:02:49]}  Nc4 {[%clk 0:02:09]} 14. Qd3 {[%clk 0:02:46]}  Nd6 {[%clk 0:02:07]} 15. a6 {[%clk 0:02:43]}  b6 {[%clk 0:02:04]} 16. Be3 {[%clk 0:02:40]}  f5 {[%clk 0:01:54]} 17. h3 {[%clk 0:02:35]}  fxe4 {[%clk 0:01:48]} 18. Nxe4 {[%clk 0:02:34]}  Bxf3 {[%clk 0:01:48]} 19. Nxd6 {[%clk 0:02:27]}  cxd6 {[%clk 0:01:43]} 20. Rac1 {[%clk 0:02:24]}  Rc8 {[%clk 0:01:33]} 21. Bxb6 {[%clk 0:02:13]}  Qxb6 {[%clk 0:01:21]} 22. Bxf3 {[%clk 0:02:13]}  Nf5 {[%clk 0:01:11]} 23. Rc6 {[%clk 0:02:06]}  Rxc6 {[%clk 0:00:57]} 24. dxc6 {[%clk 0:02:07]}  Nd4 {[%clk 0:00:57]} 25. Bd5+ {[%clk 0:02:02]}  Kh7 {[%clk 0:00:56]} 26. Qc4 {[%clk 0:01:56]}  Qc5 {[%clk 0:00:47]} 27. Qxc5 {[%clk 0:01:43]}  dxc5 {[%clk 0:00:47]} 28. Kg2 {[%clk 0:01:44]}  Rc8 {[%clk 0:00:44]} 29. Rc1 {[%clk 0:01:42]}  Bf8 {[%clk 0:00:44]} 30. Re1 {[%clk 0:01:34]}  Bd6 {[%clk 0:00:43]} 31. Rd1 {[%clk 0:01:31]}  Nxc6 {[%clk 0:00:41]} 32. h4 {[%clk 0:01:10]}  Nd4 {[%clk 0:00:40]} 33. Be4 {[%clk 0:01:07]}  Kg7 {[%clk 0:00:39]} 34. Rd3 {[%clk 0:01:03]}  Kf6 {[%clk 0:00:38]} 35. Bb7 {[%clk 0:00:59]}  Rc7 {[%clk 0:00:37]} 36. g4 {[%clk 0:00:57]}  c4 {[%clk 0:00:37]} 37. Re3 {[%clk 0:00:56]}  g5 {[%clk 0:00:31]} 38. h5 {[%clk 0:00:55]}  Ne6 {[%clk 0:00:32]} 39. Kf3 {[%clk 0:00:52]}  Bc5 {[%clk 0:00:29]} 40. Re4 {[%clk 0:00:48]}  Bd4 {[%clk 0:00:26]} 41. Re2 {[%clk 0:00:47]}  Nc5 {[%clk 0:00:24]} 42. Rc2 {[%clk 0:00:46]}  Nd3 {[%clk 0:00:21]} 43. Ke4 {[%clk 0:00:42]}  Nxf2+ {[%clk 0:00:20]} 44. Kd5 {[%clk 0:00:42]}  Nxg4 {[%clk 0:00:19]} 45. Kd6 {[%clk 0:00:40]}  Rc5 {[%clk 0:00:19]} 46. Rc1 {[%clk 0:00:29]}  c3 {[%clk 0:00:17]} 47. Rf1+ {[%clk 0:00:27]}  Nf2 {[%clk 0:00:18]} 48. bxc3 {[%clk 0:00:26]}  Rxc3 {[%clk 0:00:17]} 49. Rb1 {[%clk 0:00:19]}  g4 {[%clk 0:00:17]} 50. Bd5 {[%clk 0:00:17]}  g3 {[%clk 0:00:17]} 51. Rb7 {[%clk 0:00:17]}  Kg5 {[%clk 0:00:16]} 52. Rg7+ {[%clk 0:00:14]}  Kh4 {[%clk 0:00:16]} 53. Be6 {[%clk 0:00:13]}  Ne4+ {[%clk 0:00:12]} 54. Kd5 {[%clk 0:00:12]}  Ng5 {[%clk 0:00:12]} 0-1


[Site "https://www.chess.com"]

[Event "Titled Tuesday Blitz March 21 Late 2023"]
[White "Mendez Fortes, Eduardo Jesus"]
[Black "Maranhao,Jose Renato Ruiz"]
[WhiteFideId "3502376"]
[BlackFideId "2135175"]
[WhiteElo "2307"]
[BlackElo "1970"]
[Result "1-0"]
[Round "01"]
[TimeControl "180+2"]
[Date "2023.03.21"]
[WhiteClock "0:02:22"]
[BlackClock "0:00:03"]

1. e4 {[%clk 0:02:59]}  g6 {[%clk 0:03:00]} 2. d4 {[%clk 0:02:59]}  Bg7 {[%clk 0:03:00]} 3. Nc3 {[%clk 0:03:00]}  b6 {[%clk 0:02:59]} 4. f4 {[%clk 0:02:59]}  Bb7 {[%clk 0:02:59]} 5. Nf3 {[%clk 0:02:59]}  e6 {[%clk 0:02:59]} 6. Bd3 {[%clk 0:03:00]}  d6 {[%clk 0:02:52]} 7. Qe2 {[%clk 0:02:59]}  Ne7 {[%clk 0:02:50]} 8. h4 {[%clk 0:02:59]}  h5 {[%clk 0:02:47]} 9. Be3 {[%clk 0:02:59]}  Nbc6 {[%clk 0:02:43]} 10. e5 {[%clk 0:02:58]}  Qd7 {[%clk 0:02:24]} 11. Ng5 {[%clk 0:02:55]}  Nf5 {[%clk 0:02:15]} 12. Bxf5 {[%clk 0:02:54]}  exf5 {[%clk 0:02:09]} 13. d5 {[%clk 0:02:41]}  Nb4 {[%clk 0:01:11]} 14. e6 {[%clk 0:02:38]}  fxe6 {[%clk 0:00:54]} 15. dxe6 {[%clk 0:02:39]}  Qc6 {[%clk 0:00:44]} 16. O-O-O {[%clk 0:02:38]}  Bxc3 {[%clk 0:00:30]} 17. bxc3 {[%clk 0:02:29]}  Nxa2+ {[%clk 0:00:28]} 18. Kb2 {[%clk 0:02:29]}  Nxc3 {[%clk 0:00:25]} 19. Qd3 {[%clk 0:02:29]}  Nxd1+ {[%clk 0:00:14]} 20. Rxd1 {[%clk 0:02:28]}  O-O {[%clk 0:00:10]} 21. Bd4 {[%clk 0:02:24]}  a6 {[%clk 0:00:07]} 22. Kb1 {[%clk 0:02:24]}  Qb5+ {[%clk 0:00:07]} 23. Qxb5 {[%clk 0:02:24]}  axb5 {[%clk 0:00:08]} 24. Re1 {[%clk 0:02:22]}  Bxg2 {[%clk 0:00:07]} 25. e7 {[%clk 0:02:21]}  Rfe8 {[%clk 0:00:06]} 26. Re6 {[%clk 0:02:22]}  Ra4 {[%clk 0:00:03]} 27. Rxg6# {[%clk 0:02:22]} 1-0


[Site "https://www.chess.com"]

[Event "Titled Tuesday Blitz March 21 Late 2023"]
[White "Petukhov, Dmitry"]
[Black "Vargas Pereda, Jesus Manue"]
[WhiteFideId "4142748"]
[BlackFideId "5115710"]
[WhiteElo "2311"]
[BlackElo "1914"]
[Result "1-0"]
[Round "01"]
[TimeControl "180+2"]
[Date "2023.03.21"]
[WhiteClock "0:02:17"]
[BlackClock "0:01:48"]

1. e4 {[%clk 0:02:56]}  c5 {[%clk 0:02:59]} 2. c3 {[%clk 0:02:52]}  d5 {[%clk 0:02:57]} 3. exd5 {[%clk 0:02:53]}  Qxd5 {[%clk 0:02:58]} 4. d4 {[%clk 0:02:53]}  Nc6 {[%clk 0:02:57]} 5. Nf3 {[%clk 0:02:53]}  Bf5 {[%clk 0:02:56]} 6. Bd3 {[%clk 0:02:45]}  cxd4 {[%clk 0:02:42]} 7. Bxf5 {[%clk 0:02:40]}  Qxf5 {[%clk 0:02:39]} 8. cxd4 {[%clk 0:02:41]}  e6 {[%clk 0:02:36]} 9. Qb3 {[%clk 0:02:35]}  Nb4 {[%clk 0:02:05]} 10. O-O {[%clk 0:02:27]}  Nf6 {[%clk 0:02:01]} 11. Bd2 {[%clk 0:02:23]}  Qd5 {[%clk 0:01:53]} 12. Qa4+ {[%clk 0:02:17]}  Nc6 {[%clk 0:01:52]} 13. Nc3 {[%clk 0:02:16]}  Qa5 {[%clk 0:01:48]} 14. Qxa5 {[%clk 0:02:16]}  Nxa5 {[%clk 0:01:48]} 15. Nb5 {[%clk 0:02:17]} 1-0


[Site "https://www.chess.com"]

[Event "Titled Tuesday Blitz March 21 Late 2023"]
[White "dorpato"]
[Black "Hajiyev, Kanan"]
[BlackFideId "13404148"]
[WhiteElo "1963"]
[BlackElo "2103"]
[Result "0-1"]
[Round "01"]
[TimeControl "180+2"]
[Date "2023.03.21"]
[WhiteClock "0:01:19"]
[BlackClock "0:01:38"]

1. d4 {[%clk 0:02:57]}  d5 {[%clk 0:02:51]} 2. c4 {[%clk 0:02:57]}  c6 {[%clk 0:02:52]} 3. cxd5 {[%clk 0:02:56]}  cxd5 {[%clk 0:02:53]} 4. Nc3 {[%clk 0:02:56]}  Nf6 {[%clk 0:02:54]} 5. Bf4 {[%clk 0:02:55]}  g6 {[%clk 0:02:54]} 6. e3 {[%clk 0:02:54]}  Bg7 {[%clk 0:02:55]} 7. h3 {[%clk 0:02:54]}  O-O {[%clk 0:02:53]} 8. Bd3 {[%clk 0:02:54]}  Qb6 {[%clk 0:02:52]} 9. Rb1 {[%clk 0:02:47]}  Bd7 {[%clk 0:02:45]} 10. Nf3 {[%clk 0:02:46]}  Bc6 {[%clk 0:02:46]} 11. Ne5 {[%clk 0:02:40]}  Nbd7 {[%clk 0:02:44]} 12. Nxd7 {[%clk 0:02:39]}  Nxd7 {[%clk 0:02:38]} 13. O-O {[%clk 0:02:38]}  e5 {[%clk 0:02:34]} 14. dxe5 {[%clk 0:02:35]}  Nxe5 {[%clk 0:02:35]} 15. Be2 {[%clk 0:02:27]}  Rad8 {[%clk 0:02:32]} 16. Na4 {[%clk 0:02:13]}  Qa5 {[%clk 0:02:24]} 17. Nc3 {[%clk 0:02:09]}  Nc4 {[%clk 0:02:18]} 18. Bxc4 {[%clk 0:01:49]}  dxc4 {[%clk 0:02:17]} 19. Qc2 {[%clk 0:01:45]}  Rd3 {[%clk 0:02:16]} 20. Ne2 {[%clk 0:01:31]}  Qxa2 {[%clk 0:01:50]} 21. Rfd1 {[%clk 0:01:19]}  Ba4 {[%clk 0:01:38]} 0-1


[Site "https://www.chess.com"]